bitfinex/quotes_ETHUSD_20240715
["timestamp","ask_amount","ask_price","bid_price","bid_amount"]
[1721057552408,1.30257586,3377.1,3376.4,2.4818]
[1721057552611,0.93041133,3377.1,3376.4,2.4818]
[1721057553811,0.93041133,3377.1,3375.5,2.362]
[1721057554002,0.93041133,3376.9,3375.5,2.362]
[1721057554195,0.93041133,3376.9,3375.5,2.67118649]
[1721057554509,1.30252585,3376.9,3375.6,0.56711865]
[1721057554671,1.30252585,3376.9,3375.5,2.67118649]
[1721057554874,0.93041133,3377.0,3375.5,2.67118649]
[1721057555093,0.93041133,3377.1,3375.5,2.67118649]
[1721057556302,0.92960771,3377.1,3375.5,2.67118649]
[1721057557610,0.92960771,3377.2,3375.5,2.67118649]
[1721057557907,0.81299547,3377.1,3375.6,0.26711865]
[1721057558115,1.74260318,3377.1,3375.6,0.26711865]
[1721057558414,0.81299547,3377.1,3375.7,2.2744]
[1721057560002,1.74120102,3377.1,3375.7,2.2744]
[1721057560212,0.81159331,3377.1,3375.8,0.28507051]
[1721057561227,3.92960771,3377.3,3375.9,2.4304]
[1721057561372,3.92960771,3377.4,3375.9,2.4304]
[1721057561575,0.92960771,3377.4,3375.9,2.4304]
[1721057561891,0.79641806,3377.3,3376.0,0.27154705]
[1721057562250,0.79641806,3377.3,3376.1,2.4674]
[1721057564999,0.92960771,3377.4,3376.1,2.4674]
[1721057565634,3.21709598,3377.5,3376.1,2.4674]
[1721057565635,4.14607787,3377.5,3376.1,2.4674]
[1721057566322,0.92898189,3377.4,3376.1,2.4674]
[1721057567139,0.92898189,3377.3,3376.1,2.4674]
[1721057567637,0.92898189,3377.2,3376.1,2.4674]
[1721057567807,0.51285044,3377.1,3376.1,2.4674]
[1721057569625,0.92898189,3377.3,3376.1,2.4674]
[1721057570206,0.92898189,3377.4,3376.1,2.4674]
[1721057570444,3.0,3377.5,3376.1,2.4674]
[1721057570606,3.92898189,3377.6,3376.1,2.4674]
[1721057570800,0.92898189,3377.7,3376.1,2.4674]
[1721057571007,2.13814855,3377.7,3376.3,2.3309]
[1721057571219,5.13814855,3377.7,3376.3,2.3309]
[1721057571648,0.92898189,3377.6,3376.3,2.3309]
[1721057571950,3.92898189,3377.6,3376.3,2.3309]
[1721057572152,0.92898189,3377.4,3376.3,2.3309]
[1721057572349,0.77456244,3377.3,3376.3,2.3309]
[1721057572549,0.92898189,3377.4,3376.3,2.3309]
[1721057572550,3.0,3377.4,3376.3,2.3309]
[1721057572749,3.92898189,3377.5,3376.3,2.3309]
[1721057573053,0.92898189,3377.4,3376.3,2.3309]
[1721057575952,3.92898189,3377.5,3376.3,2.3309]
[1721057576159,1.824461,3377.4,3376.3,2.3309]
[1721057576329,4.824461,3377.4,3376.3,2.3309]
[1721057576734,1.824461,3377.4,3376.3,2.3309]
[1721057577765,3.92898189,3377.5,3376.3,2.3309]
[1721057578069,2.44780918,3377.7,3376.3,2.3309]
[1721057578070,3.0,3377.6,3376.3,2.3309]
[1721057578265,0.92898189,3377.7,3376.3,2.3309]
[1721057578447,0.92898189,3377.7,3376.4,2.58219]
[1721057578625,0.92898189,3377.6,3376.4,2.58219]
[1721057578962,0.92898189,3377.7,3376.4,2.58219]
[1721057579274,0.92898189,3377.8,3376.5,2.40832528]
[1721057579558,1.23864252,3378.0,3376.5,2.40832528]
[1721057579559,0.92898189,3377.9,3376.5,2.40832528]
[1721057579769,0.92898189,3377.9,3376.6,2.61324153]
[1721057579975,0.92898189,3377.9,3376.7,2.40832227]
[1721057580280,0.92898189,3377.9,3376.8,2.3491]
[1721057580442,0.92898189,3378.0,3376.8,2.3491]
[1721057580744,1.88574433,3377.9,3376.8,2.3491]
[1721057580957,0.92898189,3377.7,3376.8,2.3491]
[1721057581532,0.92898189,3377.8,3376.8,2.3491]
[1721057581940,0.92898189,3377.9,3376.8,2.3491]
[1721057582463,0.92898189,3377.8,3376.8,2.3491]
[1721057582670,0.51676244,3377.7,3376.8,2.3491]
[1721057582963,1.44574433,3377.7,3376.8,2.3491]
[1721057583367,0.51676244,3377.7,3376.8,2.3491]
[1721057583931,0.92989553,3377.7,3376.8,2.3491]
[1721057584160,0.92989553,3377.8,3376.8,2.3491]
[1721057584355,0.92989553,3377.9,3376.8,2.3491]
[1721057584557,0.92989553,3377.8,3376.8,2.3491]
[1721057584761,0.92989553,3377.9,3376.9,0.05921642]
[1721057584978,1.2398607,3378.1,3376.5,2.3922]
[1721057584979,0.92989553,3378.1,3376.5,2.3922]
[1721057585281,1.2398607,3378.2,3376.7,2.3922]
[1721057585282,0.92989553,3378.2,3376.7,2.3922]
[1721057585488,0.92989553,3378.2,3376.9,2.3922]
[1721057585646,1.54982588,3378.6,3377.1,2.3424]
[1721057585647,0.92989553,3378.6,3377.1,2.3424]
[1721057585843,1.2398607,3378.7,3377.3,2.3424]
[1721057585844,0.92989553,3378.7,3377.3,2.3424]
[1721057586081,0.92989553,3378.7,3377.4,2.40160447]
[1721057586243,0.92989553,3378.7,3377.6,2.3424]
[1721057586447,0.92989553,3378.7,3377.8,2.3424]
[1721057586843,0.92961744,3378.8,3377.8,2.3424]
[1721057587092,0.92961744,3379.0,3377.9,2.49849866]
[1721057587278,9.25923489,3379.6,3377.9,2.4393]
[1721057587279,0.92961744,3379.3,3377.9,2.4393]
[1721057587508,0.92961744,3379.3,3378.1,2.4393]
[1721057590515,0.92961744,3379.2,3378.1,2.4393]
[1721057592498,3.0,3379.5,3378.1,2.4393]
[1721057592694,0.92814618,3379.4,3378.1,2.4393]
[1721057592982,0.39281462,3379.3,3378.3,2.3984]
[1721057593710,0.92814618,3379.4,3378.3,2.3984]
[1721057596482,2.95922,3379.3,3378.3,2.3984]
[1721057597015,5.95928,3379.2,3377.1,2.3456]
[1721057597314,3.0,3379.2,3377.1,2.3456]
[1721057597494,3.0,3379.3,3377.1,2.3456]
[1721057597695,4.63746644,3379.2,3377.3,2.4868]
[1721057598004,3.0,3379.1,3377.3,2.4868]
[1721057599329,1.67818644,3379.2,3377.3,2.4868]
[1721057599507,1.67818644,3379.2,3377.4,2.8352]
[1721057599895,3.0,3379.3,3377.4,2.8352]
[1721057600097,0.92814618,3379.4,3377.6,2.578]
[1721057600330,0.92814618,3379.4,3377.8,2.2852]
[1721057600627,0.92814618,3379.4,3377.9,2.8352]
[1721057601430,0.92814618,3379.4,3377.2,3.77273831]
[1721057601431,2.578,3378.9,3377.5,2.2852]
[1721057601723,2.578,3378.5,3377.5,2.2852]
[1721057602234,5.698,3378.5,3377.1,2.2946]
[1721057602451,5.53825,3378.1,3377.1,2.2946]
[1721057602761,3.0,3378.0,3377.1,2.2946]
[1721057603114,5.96034,3378.0,3377.0,0.61750938]
[1721057603352,2.9605,3377.9,3377.0,0.61750938]
[1721057603767,2.96051,3377.8,3377.0,0.61750938]
[1721057603973,2.96051,3377.8,3376.6,2.2834]
[1721057603974,0.892101,3377.7,3376.6,2.2834]
[1721057604455,6.430771,3377.7,3376.6,2.2834]
[1721057604614,2.96071,3377.6,3376.6,2.2834]
[1721057604817,2.96071,3377.6,3375.2,2.3035]
[1721057604818,2.578,3377.3,3375.2,2.3035]
[1721057605057,9.776005,3377.2,3375.3,0.29210094]
[1721057605239,5.53929,3376.9,3375.3,0.29210094]
[1721057605627,2.96139,3376.8,3375.3,0.29210094]
[1721057606657,2.578,3376.9,3375.4,0.05924348]
[1721057606840,2.96113,3377.1,3375.4,0.05924348]
[1721057607017,4.03201758,3377.0,3375.6,2.4906]
[1721057607215,6.99323758,3377.0,3375.6,2.4906]
[1721057607851,4.03201758,3377.0,3375.6,2.4906]
[1721057608055,1.03201758,3377.0,3375.6,2.4906]
[1721057608973,3.99327758,3377.0,3375.6,2.4906]
[1721057609136,3.99544176,3376.9,3375.6,2.4906]
[1721057609650,0.99544176,3376.9,3375.6,2.4906]
[1721057610649,3.57344176,3376.9,3375.6,2.4906]
[1721057610854,6.53474176,3376.9,3375.6,2.4906]
[1721057612147,2.96144,3376.8,3375.6,2.4906]
[1721057612350,2.578,3376.5,3375.6,2.4906]
[1721057613350,5.53964,3376.5,3374.1,2.4971]
[1721057613550,3.0,3376.4,3374.1,2.4971]
[1721057613865,3.0,3376.4,3374.3,2.3805]
[1721057614059,0.853964,3376.3,3374.5,2.3805]
[1721057614264,2.96194,3376.2,3374.6,2.3805]
[1721057617387,2.578,3376.1,3374.6,2.3805]
[1721057617621,2.96209,3376.0,3374.6,2.3805]
[1721057617843,0.554009,3375.9,3374.6,2.3805]
[1721057619314,3.516179,3375.9,3374.6,2.3805]
[1721057619535,2.578,3375.7,3374.6,2.3805]
[1721057619753,5.54085,3375.2,3374.4,2.4194]
[1721057619974,2.96288,3375.1,3374.4,2.4194]
[1721057620226,0.850365,3375.0,3374.4,2.4194]
[1721057620894,5.578,3375.6,3374.4,2.4194]
[1721057621099,2.578,3375.6,3374.4,2.4194]
[1721057621295,3.0,3375.5,3374.4,2.4194]
[1721057622220,2.578,3374.5,3373.6,2.3049]
[1721057622437,0.554131,3374.4,3373.6,2.3049]
[1721057622783,0.554131,3374.4,3372.1,2.3049]
[1721057623057,2.96364,3374.3,3372.1,2.3049]
[1721057623321,2.578,3374.1,3372.2,2.61303194]
[1721057623546,2.578,3373.7,3372.2,2.61303194]
[1721057623845,0.5542,3373.6,3372.3,0.26130319]
[1721057626590,2.578,3373.7,3372.3,0.26130319]
[1721057627660,5.54211,3373.7,3372.3,0.26130319]
[1721057627803,6.12,3374.3,3372.2,2.61303194]
[1721057627804,2.578,3373.2,3372.2,2.61303194]
[1721057628003,5.96469,3373.1,3372.2,2.3049]
[1721057628253,5.96469,3373.1,3370.2,2.96711]
[1721057628254,5.54289,3372.8,3370.9,2.3933]
[1721057628605,5.96499,3372.7,3371.0,0.30801395]
[1721057629309,2.9651,3372.6,3371.0,0.30801395]
[1721057629543,3.0,3372.7,3371.0,0.30801395]
[1721057629719,3.0,3372.7,3371.2,2.2783]
[1721057629720,3.9693699,3372.7,3371.2,2.2783]
[1721057629938,3.9693699,3372.7,3371.1,0.2701314]
[1721057629939,2.578,3373.2,3371.4,2.2783]
[1721057630141,3.0,3373.1,3371.4,2.2783]
[1721057630922,2.578,3373.2,3371.5,0.55]
[1721057631121,3.0,3373.1,3371.5,0.55]
[1721057631553,3.0,3373.1,3371.4,2.2783]
[1721057631861,2.578,3372.8,3371.4,2.2783]
[1721057632844,3.819032,3373.0,3371.4,2.2783]
[1721057632845,0.854262,3373.0,3371.4,2.2783]
[1721057633273,3.818992,3373.0,3371.4,2.2783]
[1721057633668,0.854262,3373.0,3371.4,2.2783]
[1721057634883,2.578,3372.8,3371.4,2.2783]
[1721057635051,0.3432262,3372.7,3371.4,2.2783]
[1721057635683,0.854262,3373.0,3371.4,2.2783]
[1721057635877,0.854262,3373.0,3371.5,0.55]
[1721057636233,2.578,3373.2,3371.6,2.2798]
[1721057636441,2.52172447,3377.5,3371.6,2.2798]
[1721057636442,2.578,3374.1,3371.8,2.2798]
[1721057636733,2.578,3373.7,3372.0,2.2798]
[1721057637171,2.7441,3374.3,3372.0,2.2798]
[1721057637172,3.12,3373.8,3372.0,2.2798]
[1721057637472,2.578,3373.3,3372.0,2.2798]
[1721057637777,0.2578,3373.2,3372.0,2.2798]
[1721057638977,5.9642,3373.6,3372.0,2.2798]
[1721057640725,2.96428,3373.5,3372.0,2.2798]
[1721057640879,6.12,3373.6,3372.0,2.2798]
[1721057640880,2.578,3372.9,3372.0,2.2798]
[1721057641778,3.0,3372.8,3371.2,2.4038]
[1721057642102,5.96489,3372.8,3371.2,2.4038]
[1721057642301,5.96489,3372.8,3371.2,2.97908642]
[1721057642302,1.166289,3372.7,3371.2,2.97908642]
[1721057642825,2.96507,3372.6,3371.2,2.71169328]
[1721057642977,5.578,3372.5,3371.2,2.71169328]
[1721057643168,2.96539,3372.3,3371.2,2.71169328]
[1721057643382,2.96539,3372.3,3371.2,2.4038]
[1721057643383,2.578,3372.1,3371.2,2.4038]
[1721057643583,3.0,3372.2,3371.2,2.4038]
[1721057643873,0.3,3372.1,3371.2,2.4038]
[1721057644215,3.0,3372.4,3371.2,2.4038]
[1721057644509,3.0,3372.8,3371.2,2.4038]
[1721057645039,3.0,3372.8,3371.2,2.71194758]
[1721057647331,2.96409,3373.8,3371.2,2.71194758]
[1721057647332,3.0,3373.1,3371.4,2.2761]
[1721057647474,0.3,3373.0,3371.4,2.53452476]
[1721057647700,3.45,3372.7,3371.4,2.2761]
[1721057648010,2.96516,3372.5,3371.4,2.2761]
[1721057648398,5.96514,3372.6,3371.4,2.2761]
[1721057648399,3.12,3372.3,3371.4,2.2761]
[1721057648735,0.55,3372.2,3370.6,2.2761]
[1721057648894,1.018529,3372.1,3370.7,0.23955848]
[1721057649295,3.984039,3372.1,3370.6,2.58432953]
[1721057649518,6.5156,3372.0,3370.6,2.58432953]
[1721057649895,3.0,3372.0,3370.6,2.58432953]
[1721057650105,1.018529,3372.1,3370.7,0.05932598]
[1721057650304,1.018529,3372.1,3370.6,2.58432953]
[1721057650530,0.6983859,3372.0,3370.7,0.27038143]
[1721057650899,3.0,3372.4,3370.7,0.27038143]
[1721057651135,3.0,3372.4,3370.8,2.2603]
[1721057651354,2.96516,3372.5,3370.8,2.2603]
[1721057651542,3.0,3372.4,3370.8,2.2603]
[1721057651714,0.55,3372.3,3370.8,2.2603]
[1721057651908,0.963528,3372.2,3370.8,2.55616851]
[1721057652251,3.928958,3372.2,3370.8,2.55616851]
[1721057652403,0.963528,3372.2,3370.8,2.55616851]
[1721057652634,3.963528,3372.2,3370.8,2.55616851]
[1721057653575,3.0,3372.1,3370.8,2.55616851]
[1721057653749,0.46514994,3372.9,3370.9,0.05932276]
[1721057653964,0.46514994,3372.9,3370.8,2.55616851]
[1721057654167,0.5966,3373.0,3371.0,2.2603]
[1721057654355,3.12,3372.9,3371.0,2.2603]
[1721057654552,2.96494,3372.8,3371.0,2.2603]
[1721057655083,0.5966,3373.0,3371.0,2.2603]
[1721057655084,2.96522,3372.5,3371.0,2.2603]
[1721057655382,3.12,3372.6,3371.0,2.2603]
[1721057655590,3.12,3372.6,3371.0,2.48633]
[1721057655591,4.503492,3372.5,3371.0,2.48633]
[1721057655958,3.953492,3372.5,3371.0,2.48633]
[1721057656270,3.0,3372.7,3371.0,2.48633]
[1721057656472,2.96483,3372.9,3371.0,2.48633]
[1721057656647,3.0,3372.8,3371.0,2.48633]
[1721057657044,0.5966,3373.0,3371.0,2.48633]
[1721057657045,3.5966,3373.0,3371.0,2.48633]
[1721057657244,0.5966,3373.0,3371.0,2.48633]
[1721057657439,0.46506166,3373.2,3371.2,2.4394]
[1721057657646,0.2966,3373.4,3371.3,2.9894]
[1721057657892,7.4,3373.7,3371.3,2.49870456]
[1721057658159,7.4,3373.7,3371.5,2.3361]
[1721057658160,0.46500363,3373.7,3371.5,2.3361]
[1721057658369,2.96389,3374.0,3371.5,2.3361]
[1721057658569,0.937767,3373.9,3371.7,2.3361]
[1721057658947,0.937767,3373.9,3371.6,0.23361]
[1721057658948,0.937767,3373.9,3371.8,2.3361]
[1721057659363,0.46496244,3374.0,3371.8,2.3361]
[1721057659775,2.96392,3373.9,3371.8,2.3361]
[1721057659964,2.96417,3373.7,3371.8,2.3361]
[1721057660450,3.0,3373.6,3371.8,2.3361]
[1721057660889,5.96424,3373.6,3371.8,2.3361]
[1721057661191,1.549841,3373.5,3371.8,2.3361]
[1721057662369,4.514131,3373.5,3371.8,2.3361]
[1721057662568,3.0,3373.4,3371.8,2.3361]
[1721057662773,2.96471,3373.1,3371.8,2.3361]
[1721057663108,3.0,3373.0,3371.8,2.3361]
[1721057663410,0.3,3372.9,3371.8,2.3361]
[1721057663576,5.96439,3373.4,3371.8,2.3361]
[1721057664558,2.96472,3373.0,3371.8,2.3361]
[1721057664754,3.0,3372.9,3371.8,2.3361]
[1721057664982,3.0,3373.2,3371.8,2.3361]
[1721057665206,0.55,3373.1,3371.8,2.3361]
[1721057665395,1.01846,3373.0,3371.8,2.3361]
[1721057667182,3.0,3373.3,3371.8,2.3361]
[1721057667577,9.08445,3373.3,3371.8,2.3361]
[1721057667808,3.5146,3373.2,3371.8,2.3361]
[1721057668133,5.96463,3373.1,3371.8,2.3361]
[1721057668495,2.96478,3373.0,3371.8,2.3361]
[1721057668699,4.259941,3372.9,3371.8,2.3361]
[1721057669292,7.224751,3372.9,3371.8,2.3361]
[1721057670636,2.96538,3372.3,3371.2,2.3441]
[1721057671043,3.0,3372.2,3371.2,2.3441]
[1721057671343,3.0,3372.4,3371.2,2.3441]
[1721057671518,2.96498,3372.7,3371.2,2.3441]
[1721057671519,3.0,3372.6,3371.2,2.3441]
[1721057672050,1.259941,3372.9,3371.4,2.3441]
[1721057672051,2.18692186,3372.9,3371.4,2.3441]
[1721057672336,2.18692186,3372.9,3371.6,2.3921]
[1721057672900,0.92698086,3372.8,3371.6,2.3921]
[1721057673146,5.46075549,3372.9,3371.6,2.3921]
[1721057673147,2.18692186,3372.9,3371.6,2.3921]
[1721057673296,0.92698086,3372.8,3371.6,2.3921]
[1721057674520,8.32961551,3373.1,3371.8,2.2747]
[1721057674742,0.92961551,3373.1,3371.8,2.2747]
[1721057675549,0.92961551,3373.2,3372.0,2.3751]
[1721057675707,0.92961551,3373.2,3371.7,1.17135713]
[1721057675708,0.92961551,3373.3,3372.1,2.71571152]
[1721057675906,0.92961551,3373.2,3372.1,2.71571152]
[1721057676332,0.92961551,3373.1,3372.1,2.71571152]
[1721057676533,0.92961551,3373.4,3372.1,2.71571152]
[1721057676753,0.92961551,3373.5,3372.3,2.3036]
[1721057677127,0.92961551,3373.7,3372.5,2.3036]
[1721057677464,0.92961551,3373.9,3372.5,2.3036]
[1721057677635,0.92961551,3373.9,3372.4,0.55]
[1721057677636,0.92961551,3373.9,3372.7,2.3424]
[1721057677849,1.23948735,3374.1,3372.7,2.3424]
[1721057677850,0.92961551,3374.0,3372.7,2.3424]
[1721057678051,0.92961551,3374.0,3372.9,2.3424]
[1721057678642,0.92961551,3373.8,3372.9,2.3424]
[1721057678838,0.92961551,3374.0,3372.9,2.3424]
[1721057679342,0.92961551,3374.1,3372.9,2.3424]
[1721057680047,0.92961551,3374.0,3372.9,2.3424]
[1721057680271,0.92961551,3374.1,3373.0,0.23424]
[1721057681288,0.92961551,3374.2,3373.0,0.23424]
[1721057681596,0.92961551,3374.3,3373.1,2.3793]
[1721057681780,0.92961551,3374.5,3373.1,2.3793]
[1721057682083,0.92961551,3374.8,3373.2,2.640654]
[1721057682287,0.92961551,3374.9,3373.2,2.640654]
[1721057682933,2.96262,3375.4,3373.2,2.640654]
[1721057682934,0.92961551,3375.7,3374.1,2.3793]
[1721057683142,1.23948735,3375.9,3374.3,2.3982]
[1721057683143,0.92961551,3375.9,3374.3,2.3982]
[1721057683302,7.4,3376.4,3374.4,2.3982]
[1721057683492,3.89153551,3376.2,3374.4,2.3982]
[1721057683798,0.92961551,3376.2,3374.4,2.3982]
[1721057683999,0.92961551,3376.3,3374.4,2.3982]
[1721057684202,0.71638577,3376.3,3374.6,2.2705]
[1721057684530,6.08138,3376.8,3374.6,2.2705]
[1721057684531,7.01099551,3376.8,3374.6,2.2705]
[1721057685084,4.04961551,3376.8,3374.6,2.2705]
[1721057685263,0.2966,3376.9,3374.8,2.2542]
[1721057685669,2.9614,3376.8,3374.8,2.2542]
[1721057685867,10.36113,3377.1,3374.8,2.2542]
[1721057685868,0.2966,3377.1,3374.8,2.2542]
[1721057686107,0.49635051,3377.1,3375.0,2.2856]
[1721057686468,0.49635051,3377.1,3374.9,0.46155947]
[1721057686469,0.49635051,3377.1,3375.1,0.55]
[1721057686674,0.49635051,3377.1,3375.2,2.4976]
[1721057686936,0.49635051,3377.1,3375.3,0.05923833]
[1721057687214,3.12,3377.7,3375.4,2.2665]
[1721057687509,3.12,3377.7,3375.6,2.4492]
[1721057687925,0.2966,3377.9,3375.8,2.4492]
[1721057688075,3.25706,3377.9,3375.8,2.4492]
[1721057688286,6.37706,3377.9,3375.8,2.4492]
[1721057688522,1.27874,3377.8,3376.0,2.4492]
[1721057689012,2.96066,3377.7,3376.0,2.4492]
[1721057689173,3.0,3377.6,3376.0,2.4492]
[1721057689389,0.55,3377.5,3376.0,2.4492]
[1721057689574,2.96092,3377.4,3376.0,2.4492]
[1721057689801,0.55,3377.5,3376.0,2.4492]
[1721057689802,4.25916,3377.3,3376.0,2.4492]
[1721057690115,1.27874,3377.8,3376.0,2.4492]
[1721057690310,0.2966,3378.2,3376.0,2.4492]
[1721057690526,2.96026,3378.1,3376.0,2.4492]
[1721057690732,6.41034,3378.0,3376.0,2.4492]
[1721057691395,3.0,3377.9,3376.0,2.4492]
[1721057692205,5.96044,3377.9,3376.0,2.4492]
[1721057692403,2.9605,3377.8,3376.0,2.4492]
[1721057692717,3.94105,3377.7,3376.0,2.69412]
[1721057693408,6.90164,3377.7,3376.0,2.69412]
[1721057694490,2.96069,3377.6,3376.0,2.69412]
[1721057694698,5.96077,3377.5,3376.0,2.4492]
[1721057694934,2.96077,3377.5,3376.0,2.4492]
[1721057695096,3.94105,3377.7,3376.0,2.4492]
[1721057695300,0.94105,3377.7,3376.0,2.4492]
[1721057695915,5.96033,3378.0,3376.0,2.4492]
[1721057696355,2.96042,3377.9,3376.0,2.4492]
[1721057696499,3.0,3377.8,3376.0,2.4492]
[1721057696694,5.96051,3377.8,3376.0,2.4492]
[1721057696930,2.96062,3377.7,3376.0,2.4492]
[1721057697102,3.892113,3377.6,3376.0,2.4492]
[1721057697638,2.96079,3377.5,3376.0,2.4492]
[1721057698262,2.96078,3377.5,3376.0,2.4492]
[1721057698912,2.96088,3377.4,3376.0,2.4492]
[1721057699117,2.96112,3377.1,3376.0,2.4492]
[1721057699356,0.592206,3377.0,3376.0,2.4492]
[1721057699568,3.592206,3377.0,3376.0,2.4492]
[1721057699920,2.96138,3376.9,3376.0,2.4492]
[1721057700121,5.96139,3376.8,3376.0,2.4492]
[1721057700566,2.96147,3376.7,3376.0,2.4492]
[1721057700768,0.892285,3376.6,3376.0,2.4492]
[1721057701054,3.892285,3376.6,3376.0,2.4492]
[1721057702222,0.892285,3376.6,3376.0,2.4492]
[1721057702550,3.553466,3377.0,3376.0,2.4492]
[1721057702712,3.0,3376.9,3376.0,2.4492]
[1721057703360,2.9614,3376.8,3376.0,2.4492]
[1721057703864,5.96135,3376.9,3376.0,2.4492]
[1721057704062,3.0,3376.9,3376.0,2.4492]
[1721057704244,0.3592206,3376.8,3376.0,2.4492]
[1721057704670,3.3206206,3376.8,3376.0,2.4492]
[1721057705427,2.96149,3376.7,3376.0,2.4492]
[1721057705627,0.3592206,3376.8,3376.0,2.4492]
[1721057706016,0.2966,3377.3,3376.0,2.4492]
[1721057706271,0.892113,3377.6,3376.0,2.4492]
[1721057706565,2.96053,3377.8,3376.0,2.4492]
[1721057707041,3.42478679,3378.0,3376.1,0.05922612]
[1721057707042,0.46442679,3378.0,3376.1,0.05922612]
[1721057707245,0.46442679,3378.0,3376.2,2.3561]
[1721057707422,2.96041,3378.0,3376.2,2.3561]
[1721057707766,0.2966,3378.1,3376.2,2.3561]
[1721057707921,2.96071,3377.6,3376.2,2.59171]
[1721057709268,6.57,3378.0,3376.2,2.59171]
[1721057709269,3.45,3378.0,3376.2,2.59171]
[1721057709422,3.0,3377.9,3376.4,2.3011]
[1721057709817,3.0,3378.0,3376.4,2.3011]
[1721057710045,3.0,3378.0,3375.6,3.0]
[1721057710046,3.0,3378.0,3376.6,2.3876]
[1721057710463,3.0,3378.4,3376.6,2.3876]
[1721057710670,2.96017,3378.2,3376.6,2.3876]
[1721057710832,2.96049,3377.9,3376.6,2.3876]
[1721057711024,3.0,3377.8,3376.6,2.3876]
[1721057711289,1.23709,3377.7,3376.6,2.3826]
[1721057711924,2.96084,3377.5,3376.6,2.3826]
[1721057712562,5.96088,3377.4,3376.6,2.3826]
[1721057712963,3.0,3377.4,3376.6,2.3826]
[1721057713331,3.0,3377.5,3376.6,2.3826]
[1721057713532,1.015843,3377.4,3376.6,2.3826]
[1721057713966,2.96094,3377.3,3376.6,2.3826]
[1721057714171,2.96103,3377.2,3376.6,2.3826]
[1721057714773,3.0,3377.1,3376.6,2.3826]
[1721057715585,5.96112,3377.1,3376.6,2.3826]
[1721057715789,0.892215,3377.0,3376.6,2.3826]
[1721057715978,3.853445,3377.0,3376.6,2.3826]
[1721057716579,0.892215,3377.0,3376.6,2.3826]
[1721057716794,5.961,3377.3,3376.6,2.3826]
[1721057717874,2.96124,3377.0,3376.6,2.3826]
[1721057718208,2.96124,3377.0,3375.2,2.4196]
[1721057718370,3.0,3377.3,3375.3,0.0592366]
[1721057718570,1.015843,3377.4,3375.5,2.4196]
[1721057718916,2.96077,3377.5,3375.7,2.2777]
[1721057719232,3.0,3377.4,3375.7,2.2777]
[1721057720294,5.96086,3377.4,3375.7,2.2777]
[1721057720498,2.96094,3377.3,3375.7,2.2777]
[1721057720886,3.0,3377.2,3375.7,2.2777]
[1721057721084,3.0,3377.2,3375.9,2.2554]
[1721057721085,0.896094,3377.1,3375.9,2.2554]
[1721057721625,5.96085,3377.4,3375.9,2.2554]
[1721057722278,2.96097,3377.3,3375.9,2.2554]
[1721057722480,3.0,3377.2,3375.9,2.2554]
[1721057724434,2.96085,3377.4,3375.9,2.2554]
[1721057724435,3.0,3377.3,3375.9,2.2554]
[1721057724634,1.150162,3377.2,3375.9,2.50674584]
[1721057726167,2.58,3377.1,3375.9,2.2554]
[1721057726699,2.58,3377.5,3375.9,2.2554]
[1721057726904,2.96103,3377.2,3375.9,2.2554]
[1721057727332,2.96112,3377.1,3375.9,2.2554]
[1721057727920,3.0,3377.0,3375.9,2.2554]
[1721057728147,1.150215,3376.9,3375.9,2.2554]
[1721057728349,5.54153,3376.7,3375.9,2.2554]
[1721057728553,3.0,3376.6,3375.9,2.2554]
[1721057729891,3.92449592,3376.6,3375.9,2.2554]
[1721057730393,0.92449592,3376.5,3375.9,2.2554]
[1721057730551,2.03252164,3376.4,3375.9,2.2554]
[1721057731291,5.03252164,3376.4,3375.9,2.2554]
[1721057731449,0.92449592,3376.3,3375.9,2.2554]
[1721057732339,0.92449592,3376.3,3374.9,2.3003]
[1721057732541,1.84718321,3376.2,3374.9,2.3003]
[1721057733251,0.92449592,3376.1,3374.9,2.3003]
[1721057733643,0.92449592,3376.0,3374.9,2.3003]
[1721057733854,3.88665592,3376.0,3374.9,2.3003]
[1721057734439,3.88666592,3375.9,3374.9,2.3003]
[1721057734549,1.73262864,3375.8,3374.9,2.3003]
[1721057734986,0.80813272,3375.8,3374.9,2.3003]
[1721057735282,0.92449592,3375.9,3374.9,2.3003]
[1721057735489,9.98,3376.7,3374.4,0.05925573]
[1721057735490,0.92449592,3376.3,3375.0,0.05924311]
[1721057735642,0.92449592,3376.5,3375.0,2.32984311]
[1721057735838,0.92449592,3376.5,3375.2,2.2973]
[1721057736097,0.92449592,3376.5,3375.4,2.2973]
[1721057736472,0.92449592,3376.4,3375.4,2.2973]
[1721057736961,0.92449592,3376.5,3375.4,2.2973]
[1721057737370,0.92449592,3376.4,3375.4,2.2973]
[1721057738690,0.92449592,3376.3,3375.4,2.2973]
[1721057738847,0.92449592,3376.3,3375.4,2.55059543]
[1721057739985,0.92449592,3376.3,3375.5,2.5384413]
[1721057740180,0.92449592,3376.4,3375.5,2.5384413]
[1721057740545,0.92449592,3376.3,3375.5,2.4792]
[1721057740991,1.29533103,3376.3,3375.5,2.4792]
[1721057741169,0.92449592,3376.0,3375.5,2.4792]
[1721057742671,0.92449592,3376.1,3375.5,2.4792]
[1721057742987,1.23266123,3376.2,3375.5,2.4792]
[1721057742988,0.92449592,3376.2,3375.5,2.4792]
[1721057743182,0.92449592,3376.1,3375.5,2.4792]
[1721057743569,0.92449592,3376.2,3375.5,2.4792]
[1721057743973,0.92449592,3376.2,3375.5,2.72712]
[1721057744147,0.92449592,3376.4,3375.5,2.72712]
[1721057745201,0.92449592,3376.3,3375.5,2.4792]
[1721057745348,0.92449592,3376.2,3375.5,2.4792]
[1721057745549,2.96193,3376.2,3375.5,2.4792]
[1721057745747,0.92449592,3376.0,3375.5,2.4792]